fUSD/lending_fUSD_20251024
["ID","MTS","AMOUNT","RATE_DAILY","PERIOD"]
[392238166,1761274280551,-500.0,0.00041917,30]
[392238167,1761274280562,-500.0,0.00041917,30]
[392238168,1761274280572,-500.0,0.00041917,30]
[392238169,1761274280581,-500.0,0.00041917,30]
[392238170,1761274280599,-803.51,0.00041917,30]
[392238171,1761274280610,-500.0,0.00041917,30]
[392238172,1761274280619,-500.0,0.00041917,30]
[392238173,1761274280629,-508.08,0.00041917,30]
[392238174,1761274280638,-500.0,0.00041917,30]
[392238175,1761274280648,-500.0,0.00041917,30]
[392238176,1761274280657,-500.0,0.00041917,30]
[392238177,1761274280669,-271.71207092,0.00041917,30]
[392238178,1761274280679,-500.0,0.00041917,30]
[392238179,1761274280689,-820.59,0.00041917,30]
[392238180,1761274280698,-500.0,0.00041917,30]
[392238181,1761274280708,-186.3,0.00041917,30]
[392238182,1761274280717,-938.87,0.00041917,30]
[392238183,1761274280727,-182.02116964,0.00041917,30]
[392238184,1761274280736,-500.0,0.00041917,30]
[392238185,1761274280745,-622.68121793,0.00041917,30]
[392238186,1761274280756,-500.0,0.00041917,30]
[392238187,1761274280766,-500.0,0.00041917,30]
[392238188,1761274280775,-554.84,0.00041917,30]
[392238189,1761274280788,-500.0,0.00041917,30]
[392238190,1761274280798,-500.0,0.00041917,30]
[392238191,1761274280807,-500.0,0.00041917,30]
[392238192,1761274280816,-596.76079422,0.00041917,30]
[392238193,1761274280827,-638.72,0.00041917,30]
[392238194,1761274280837,-522.66,0.00041917,30]
[392238195,1761274280847,-500.0,0.00041917,30]
[392238196,1761274280856,-374.44,0.00041917,30]
[392238197,1761274280865,-500.0,0.00041917,30]
[392238198,1761274280874,-500.0,0.00041917,30]
[392238199,1761274280883,-629.32,0.00041917,30]
[392238200,1761274280892,-706.38,0.00041917,30]
[392238201,1761274280902,-232.98281575,0.00041917,30]
[392238202,1761274280911,-707.52,0.00041917,30]
[392238203,1761274280920,-500.0,0.00041917,30]
[392238204,1761274280929,-500.0,0.00041917,30]
[392238205,1761274280939,-546.94,0.00041917,30]
[392238206,1761274280949,-1177.73,0.00041917,30]
[392238207,1761274280959,-500.0,0.00041917,30]
[392238208,1761274280968,-500.0,0.00041917,30]
[392238209,1761274280977,-500.0,0.00041917,30]
[392238210,1761274280987,-500.0,0.00041917,30]
[392238211,1761274280997,-500.0,0.00041917,30]
[392238212,1761274281007,-988.6,0.00041917,30]
[392238213,1761274281028,-500.0,0.00041917,30]
[392238214,1761274281038,-928.63,0.00041917,30]
[392238215,1761274281048,-500.0,0.00041917,30]
[392238216,1761274281059,-500.0,0.00041917,30]
[392238217,1761274281070,-500.0,0.00041917,30]
[392238218,1761274281080,-587.29,0.00041917,30]
[392238219,1761274281090,-500.0,0.00041917,30]
[392238220,1761274281101,-500.0,0.00041917,30]
[392238221,1761274281111,-500.0,0.00041917,30]
[392238222,1761274281122,-500.0,0.00041917,30]
[392238223,1761274281132,-500.0,0.00041917,30]
[392238224,1761274281142,-500.0,0.00041917,30]
[392238225,1761274281152,-500.0,0.00041917,30]
[392238226,1761274281162,-500.0,0.00041917,30]
[392238227,1761274281172,-500.0,0.00041917,30]
[392238228,1761274281182,-500.0,0.00041917,30]
[392238229,1761274281193,-643.72,0.00041917,30]
[392238230,1761274281205,-733.15,0.00041917,30]
[392238231,1761274281214,-416.86076182,0.00041917,30]
[392238232,1761274281225,-698.05,0.00041917,30]
[392238233,1761274281236,-500.0,0.00041917,30]
[392238234,1761274281247,-839.55,0.00041917,30]
[392238235,1761274281257,-521.84041149,0.00041917,30]
[392238236,1761274281267,-1592.8,0.00041917,30]
[392238237,1761274281276,-500.0,0.00041917,30]
[392238238,1761274281286,-545.43,0.00041917,30]
[392238239,1761274281295,-500.0,0.00041917,30]
[392238240,1761274281305,-500.0,0.00041917,30]
[392238241,1761274281315,-663.56,0.00041917,30]
[392238242,1761274281325,-1150.75,0.00041917,30]
[392238243,1761274281334,-500.0,0.00041917,30]
[392238244,1761274281343,-500.0,0.00041917,30]
[392238245,1761274281352,-500.0,0.00041917,30]
[392238246,1761274281362,-741.59,0.00041917,30]
[392238247,1761274281372,-500.0,0.00041917,30]
[392238248,1761274281382,-500.0,0.00041917,30]
[392238249,1761274281392,-1685.01,0.00041917,30]
[392238250,1761274281401,-876.93,0.00041917,30]
[392238251,1761274281410,-500.0,0.00041917,30]
[392238252,1761274281420,-500.0,0.00041917,30]
[392238253,1761274281429,-902.25,0.00041917,30]
[392238254,1761274281439,-500.0,0.00041917,30]
[392238255,1761274281448,-500.0,0.00041917,30]
[392238256,1761274281457,-500.0,0.00041917,30]
[392238257,1761274281466,-500.0,0.00041917,30]
[392238258,1761274281476,-622.1,0.00041917,30]
[392238259,1761274281485,-472.2118301,0.00041917,30]
[392238260,1761274281495,-500.0,0.00041917,30]
[392238261,1761274281504,-500.0,0.00041917,30]
[392238262,1761274281515,-610.85,0.00041917,30]
[392238263,1761274281524,-500.0,0.00041917,30]
[392238264,1761274281533,-500.0,0.00041917,30]
[392238265,1761274281543,-500.0,0.00041917,2]
[392238266,1761274281553,-500.0,0.00041917,30]
[392238267,1761274281563,-596.32,0.00041917,30]
[392238268,1761274281572,-1579.82,0.00041917,30]
[392238269,1761274281582,-500.0,0.00041917,30]
[392238270,1761274281591,-500.0,0.00041917,30]
[392238271,1761274281600,-500.0,0.00041917,30]
[392238272,1761274281610,-920.06,0.00041917,30]
[392238273,1761274281621,-824.73,0.00041917,30]
[392238274,1761274281634,-608.33,0.00041917,30]
[392238275,1761274281643,-650.38,0.00041917,30]
[392238276,1761274281655,-500.0,0.00041917,30]
[392238277,1761274281666,-500.0,0.00041917,30]
[392238278,1761274281676,-804.6,0.00041917,30]
[392238279,1761274281685,-500.0,0.00041917,30]
[392238280,1761274281696,-500.0,0.00041917,30]
[392238281,1761274281705,-500.0,0.00041917,30]
[392238282,1761274281714,-522.54,0.00041917,30]
[392238283,1761274281724,-500.0,0.00041917,30]
[392238284,1761274281734,-574.96,0.00041917,30]
[392238285,1761274281746,-500.0,0.00041917,30]
[392238286,1761274281756,-872.69,0.00041917,30]
[392238287,1761274281767,-500.0,0.00041917,30]
[392238288,1761274281778,-500.0,0.00041917,30]
[392238289,1761274281788,-500.0,0.00041917,30]
[392238290,1761274281798,-500.0,0.00041917,30]
[392238291,1761274281809,-612.32,0.00041917,30]
[392238292,1761274281820,-500.0,0.00041917,30]
[392238293,1761274281831,-500.0,0.00041917,30]
[392238294,1761274281843,-500.0,0.00041917,30]
[392238295,1761274281852,-571.82,0.00041917,30]
[392238296,1761274281861,-500.0,0.00041917,30]
[392238297,1761274281870,-566.28,0.00041917,30]
[392238298,1761274281879,-866.58,0.00041917,30]
[392238299,1761274281888,-500.0,0.00041917,30]
[392238300,1761274281899,-500.0,0.00041917,30]
[392238301,1761274281910,-1110.19,0.00041917,30]
[392238302,1761274281920,-1253.93,0.00041917,30]
[392238303,1761274281930,-500.0,0.00041917,30]
[392238304,1761274281940,-500.0,0.00041917,30]
[392238305,1761274281951,-500.0,0.00041917,30]
[392238306,1761274281960,-500.0,0.00041917,30]
[392238307,1761274281970,-567.51,0.00041917,30]
[392238308,1761274281981,-502.66,0.00041917,30]
[392238309,1761274281991,-964.71,0.00041917,30]
[392238310,1761274282001,-661.3,0.00041917,30]
[392238311,1761274282011,-644.6,0.00041917,30]
[392238312,1761274282021,-500.0,0.00041917,30]
[392238313,1761274282032,-500.0,0.00041917,30]
[392238314,1761274282043,-500.0,0.00041917,30]
[392238315,1761274282054,-168.523742,0.00041917,30]
[392238316,1761274282063,-500.0,0.00041917,30]
[392238317,1761274282073,-507.5,0.00041917,30]
[392238318,1761274282083,-932.16,0.00041917,30]
[392238319,1761274282091,-556.7,0.00041917,30]
[392238320,1761274282100,-500.0,0.00041917,30]
[392238321,1761274282110,-683.51,0.00041917,30]
[392238322,1761274282119,-500.0,0.00041917,30]
[392238323,1761274282128,-1138.95,0.00041917,30]
[392238324,1761274282137,-500.0,0.00041917,30]
[392238325,1761274282147,-1032.7,0.00041917,30]
[392238326,1761274282156,-1090.89,0.00041917,30]
[392238327,1761274282166,-500.0,0.00041917,30]
[392238328,1761274282176,-500.0,0.00041917,30]
[392238329,1761274282186,-500.0,0.00041917,30]
[392238330,1761274282195,-500.0,0.00041917,30]
[392238331,1761274282206,-609.74,0.00041917,30]
[392238332,1761274282215,-500.0,0.00041917,30]
[392238333,1761274282225,-500.0,0.00041917,30]
[392238334,1761274282234,-500.0,0.00041917,30]
[392238335,1761274282244,-500.0,0.00041917,30]
[392238336,1761274282253,-500.0,0.00041917,30]
[392238337,1761274282262,-519.49232135,0.00041917,30]
[392238338,1761274282271,-500.0,0.00041917,30]
[392238339,1761274282281,-500.0,0.00041917,30]
[392238340,1761274282290,-505.1,0.00041917,30]
[392238341,1761274282300,-500.0,0.00041917,30]
[392238342,1761274282309,-500.0,0.00041917,30]
[392238343,1761274282318,-500.0,0.00041917,30]
[392238344,1761274282328,-612.79,0.00041917,30]
[392238345,1761274282338,-1069.5,0.00041917,30]
[392238346,1761274282347,-500.0,0.00041917,30]
[392238347,1761274282356,-500.0,0.00041917,30]
[392238348,1761274282366,-500.0,0.00041917,30]
[392238349,1761274282376,-500.0,0.00041917,30]
[392238350,1761274282385,-500.0,0.00041917,30]
[392238351,1761274282394,-554.38,0.00041917,30]
[392238352,1761274282403,-814.56,0.00041917,30]
[392238353,1761274282413,-500.0,0.00041917,30]
[392238354,1761274282422,-500.0,0.00041917,30]
[392238355,1761274282433,-500.0,0.00041917,30]
[392238356,1761274282443,-500.0,0.00041917,30]
[392238357,1761274282453,-500.0,0.00041917,30]
[392238358,1761274282463,-500.0,0.00041917,30]
[392238359,1761274282472,-848.81,0.00041917,30]
[392238360,1761274282483,-1019.41,0.00041917,30]
[392238361,1761274282493,-500.0,0.00041917,30]
[392238362,1761274282503,-543.34,0.00041917,30]
[392238363,1761274282513,-500.0,0.00041917,30]
[392238364,1761274282522,-500.0,0.00041917,30]
[392238365,1761274282531,-535.83,0.00041917,30]
[392238366,1761274282542,-257.62745926,0.00041917,30]
[392238367,1761274282553,-500.0,0.00041917,30]
[392238368,1761274282564,-261.07523136,0.00041917,30]
[392238369,1761274282577,-500.0,0.00041917,30]
[392238370,1761274282587,-236.3648164,0.00041917,30]
[392238371,1761274282597,-500.0,0.00041917,30]
[392238372,1761274282606,-500.0,0.00041917,30]
[392238373,1761274282615,-500.0,0.00041917,30]
[392238374,1761274282624,-500.0,0.00041917,30]
[392238375,1761274282640,-500.0,0.00041917,30]
[392238376,1761274282651,-602.83,0.00041917,30]
[392238377,1761274282661,-500.0,0.00041917,30]
[392238378,1761274282672,-1019.08,0.00041917,30]
[392238379,1761274282684,-782.9,0.00041917,30]
[392238380,1761274282694,-500.0,0.00041917,30]
[392238381,1761274282705,-500.0,0.00041917,30]
[392238382,1761274282715,-500.0,0.00041917,30]
[392238383,1761274282726,-500.0,0.00041917,30]
[392238384,1761274282735,-638.5,0.00041917,30]
[392238385,1761274282743,-765.87,0.00041917,30]
[392238386,1761274282754,-500.0,0.00041917,30]
[392238387,1761274282764,-500.0,0.00041917,30]
[392238388,1761274282774,-500.0,0.00041917,30]
[392238389,1761274282783,-500.0,0.00041917,30]
[392238390,1761274282792,-966.24,0.00041917,30]
[392238391,1761274282802,-500.0,0.00041917,30]
[392238392,1761274282811,-580.55293847,0.00041917,30]
[392238393,1761274282820,-500.0,0.00041917,30]
[392238394,1761274282829,-500.0,0.00041917,30]
[392238395,1761274282839,-570.32651311,0.00041917,30]
[392238396,1761274282848,-500.0,0.00041917,30]
[392238397,1761274282857,-500.0,0.00041917,30]
[392238398,1761274282867,-500.0,0.00041917,30]
[392238399,1761274282876,-613.44,0.00041917,30]
[392238400,1761274282886,-500.0,0.00041917,30]
[392238401,1761274282895,-500.0,0.00041917,30]
[392238402,1761274282904,-500.0,0.00041917,30]
[392238403,1761274282913,-500.0,0.00041917,30]
[392238404,1761274282923,-1262.52,0.00041917,30]
[392238405,1761274282932,-500.0,0.00041917,30]
[392238406,1761274282941,-500.0,0.00041917,30]
[392238407,1761274282951,-500.0,0.00041917,30]
[392238408,1761274282960,-500.0,0.00041917,30]
[392238409,1761274282970,-500.0,0.00041917,30]
[392238410,1761274282979,-657.26,0.00041917,30]
[392238411,1761274282989,-500.0,0.00041917,30]
[392238412,1761274282998,-565.20658034,0.00041917,30]
[392238413,1761274283007,-500.0,0.00041917,30]
[392238414,1761274283017,-500.0,0.00041917,30]
[392238415,1761274283026,-564.05,0.00041917,30]
[392238416,1761274283036,-500.0,0.00041917,30]
[392238417,1761274283045,-500.0,0.00041917,30]
[392238418,1761274283055,-500.0,0.00041917,30]
[392238419,1761274283064,-623.7,0.00041917,30]
[392238420,1761274283074,-500.0,0.00041917,30]
[392238421,1761274283084,-614.37116261,0.00041917,30]
[392238422,1761274283093,-500.0,0.00041917,30]
[392238423,1761274283102,-500.0,0.00041917,30]
[392238424,1761274283112,-880.84,0.00041917,30]
[392238425,1761274283122,-821.82,0.00041917,30]
[392238426,1761274283131,-500.0,0.00041917,30]
[392238427,1761274283140,-672.06,0.00041917,30]
[392238428,1761274283150,-500.0,0.00041917,30]
[392238429,1761274283162,-500.0,0.00041917,30]
[392238430,1761274283171,-500.0,0.00041917,30]
[392238431,1761274283182,-500.0,0.00041917,30]
[392238432,1761274283192,-613.96,0.00041917,30]
[392238433,1761274283203,-996.18,0.00041917,30]
[392238434,1761274283212,-774.73,0.00041917,30]
[392238435,1761274283222,-500.0,0.00041917,30]
[392238436,1761274283231,-500.0,0.00041917,30]
[392238437,1761274283241,-935.55,0.00041917,30]
[392238438,1761274283251,-500.0,0.00041917,30]
[392238439,1761274283261,-500.0,0.00041917,30]
[392238440,1761274283271,-500.0,0.00041917,30]
[392238441,1761274283281,-774.08,0.00041917,30]
[392238442,1761274283291,-500.0,0.00041917,30]
[392238443,1761274283301,-529.91,0.00041917,30]
[392238444,1761274283311,-500.0,0.00041917,30]
[392238445,1761274283321,-604.43,0.00041917,30]
[392238446,1761274283331,-500.0,0.00041917,30]
[392238447,1761274283340,-584.61,0.00041917,30]
[392238448,1761274283350,-707.97,0.00041917,30]
[392238449,1761274283361,-500.0,0.00041917,30]
[392238450,1761274283371,-514.87,0.00041917,30]
[392238451,1761274283381,-571.65408902,0.00041917,30]
[392238452,1761274283391,-500.0,0.00041917,30]
[392238453,1761274283402,-1002.32,0.00041917,30]
[392238454,1761274283412,-500.0,0.00041917,30]
[392238455,1761274283422,-500.0,0.00041917,30]
[392238456,1761274283431,-500.0,0.00041917,30]
[392238457,1761274283441,-492.26731188,0.00041917,30]
[392238458,1761274283451,-1083.67,0.00041917,30]
[392238459,1761274283460,-500.0,0.00041917,30]
[392238460,1761274283470,-732.23,0.00041917,30]
[392238461,1761274283480,-564.9,0.00041917,30]
[392238462,1761274283489,-997.82,0.00041917,30]
[392238463,1761274283500,-500.0,0.00041917,30]
[392238464,1761274283509,-926.63,0.00041917,30]
[392238465,1761274283519,-934.73,0.00041917,30]
[392238466,1761274283529,-536.07,0.00041917,30]
[392238467,1761274283539,-500.0,0.00041917,30]
[392238468,1761274283548,-978.36,0.00041917,30]
[392238469,1761274283557,-500.0,0.00041917,30]
[392238470,1761274283567,-510.50099467,0.00041917,30]
[392238471,1761274283576,-940.4,0.00041917,30]
[392238472,1761274283586,-500.0,0.00041917,30]
[392238473,1761274283595,-308.53447319,0.00041917,30]
[392238474,1761274283605,-210.1,0.00041917,30]
[392238475,1761274283614,-500.0,0.00041917,30]
[392238476,1761274283625,-502.03778343,0.00041921,5]
[392238477,1761274283637,-503.0869604,0.00041921,10]
[392238478,1761274283646,-1000.0,0.00041921,10]
[392238479,1761274283655,-1000.0,0.00041921,10]
[392238480,1761274283664,-982.37671628,0.00041921,10]
[392238481,1761274283677,-1004.62794636,0.00041921,10]
[392238482,1761274283687,-1000.0,0.00041921,2]
[392238483,1761274283697,-702.80124093,0.00041921,10]
[392238484,1761274283708,-509.52637745,0.00041973,10]
[392238485,1761274283717,-500.0,0.00041973,10]
[392238486,1761274283727,-501.32970145,0.00041973,10]
[392238487,1761274283737,-214.62849482,0.00041973,10]
[392238488,1761274283747,-500.0,0.00041973,10]
[392238489,1761274283757,-500.0,0.00041973,10]
[392238490,1761274283767,-150.0,0.00041973,10]
[392238491,1761274283777,-541.81184011,0.00041973,8]
[392238492,1761274283786,-844.98269989,0.00042,120]
[392238493,1761274283796,-565.88710575,0.00042,120]
[392238494,1761274283806,-166.66,0.00042006,30]
[392238495,1761274283816,-5000.0,0.00042025,2]
[392238496,1761274283824,-12106.95374205,0.00042053,15]
[392238497,1761274283834,-235.744,0.00042059,2]
[392238498,1761274283844,-819.0,0.00042059,2]
[392238499,1761274283854,-572.0,0.00042059,2]
[392238500,1761274283863,-3437.446,0.00042059,2]
[392238501,1761274283873,-1313.711,0.00042059,2]
[392238502,1761274283883,-678.349,0.00042059,2]
[392238503,1761274283892,-1639.156,0.00042059,2]
[392238504,1761274283902,-1269.0,0.00042059,2]
[392238505,1761274283912,-818.0,0.00042059,2]
[392238506,1761274283922,-6586.721,0.00042059,2]
[392238507,1761274283932,-3487.0,0.00042059,2]
[392238508,1761274283942,-558.0,0.00042059,2]
[392238509,1761274283953,-6454.0,0.00042059,2]
[392238510,1761274283963,-500.0,0.0004208,10]
[392238511,1761274283973,-500.0,0.0004208,2]
[392238512,1761274283982,-24442.26,0.00042084,2]
[392238513,1761274283992,-5221.37624001,0.00042091,15]
[392238514,1761274284001,-500.0,0.00042105,10]
[392238515,1761274284010,-162.40610656,0.00042121,120]
[392238516,1761274284019,-152.0,0.0004213,5]
[392238517,1761274284030,-1425.0,0.0004216,2]
[392238518,1761274284039,-2856.0,0.00042164,120]
[392238519,1761274284049,-151.68427514,0.00042173,10]
[392238520,1761274284059,-2309.34,0.00042173,2]
[392238521,1761274284068,-500.0,0.0004218,120]
[392238522,1761274284077,-500.0,0.0004218,30]
[392238523,1761274284086,-500.0,0.0004218,30]
[392238524,1761274284096,-500.0,0.0004218,30]
[392238525,1761274284105,-500.0,0.0004218,30]
[392238526,1761274284114,-500.0,0.0004218,30]
[392238527,1761274284124,-500.0,0.0004218,30]
[392238528,1761274284134,-500.0,0.0004218,30]
[392238529,1761274284143,-500.0,0.0004218,30]
[392238530,1761274284152,-500.0,0.0004218,30]
[392238531,1761274284162,-1075.14,0.0004218,30]
[392238532,1761274284171,-500.0,0.0004218,30]
[392238533,1761274284181,-500.0,0.0004218,30]
[392238534,1761274284191,-500.0,0.0004218,30]
[392238535,1761274284201,-500.0,0.0004218,30]
[392238536,1761274284210,-500.0,0.0004218,30]
[392238537,1761274284219,-800.47,0.0004218,30]
[392238538,1761274284229,-500.0,0.0004218,30]
[392238539,1761274284238,-531.44,0.0004218,30]
[392238540,1761274284248,-500.0,0.0004218,30]
[392238541,1761274284257,-500.0,0.0004218,30]
[392238542,1761274284267,-906.59,0.0004218,30]
[392238543,1761274284277,-500.0,0.0004218,30]
[392238544,1761274284286,-500.0,0.0004218,30]
[392238545,1761274284296,-500.0,0.0004218,30]
[392238546,1761274284306,-500.0,0.0004218,30]
[392238547,1761274284315,-198.27311305,0.0004218,30]
[392238548,1761274284325,-500.0,0.0004218,30]
[392238549,1761274284335,-500.0,0.0004218,30]
[392238550,1761274284345,-516.95,0.0004218,30]
[392238551,1761274284355,-882.49,0.0004218,30]
[392238552,1761274284366,-500.0,0.0004218,30]
[392238553,1761274284377,-500.0,0.0004218,30]
[392238554,1761274284387,-500.0,0.0004218,30]
[392238555,1761274284396,-917.1,0.0004218,30]
[392238556,1761274284405,-500.0,0.0004218,30]
[392238557,1761274284415,-500.0,0.0004218,30]
[392238558,1761274284424,-500.0,0.0004218,30]
[392238559,1761274284435,-500.0,0.0004218,30]
[392238560,1761274284444,-500.0,0.0004218,30]
[392238561,1761274284453,-500.0,0.0004218,30]
[392238562,1761274284463,-421.61939841,0.0004218,30]
[392238563,1761274284473,-637.87,0.0004218,30]
[392238564,1761274284619,-500.0,0.0004218,30]
[392238565,1761274284637,-524.36,0.0004218,30]
[392238566,1761274284646,-500.0,0.0004218,30]
[392238567,1761274284655,-817.53,0.0004218,30]
[392238568,1761274284664,-500.0,0.0004218,30]
[392238569,1761274284674,-1051.92,0.0004218,30]
[392238570,1761274284684,-718.5,0.0004218,30]
[392238571,1761274284693,-714.73,0.0004218,30]
[392238572,1761274284702,-500.0,0.0004218,30]
[392238573,1761274284713,-154.309446,0.0004218,30]
[392238574,1761274284723,-156.40798,0.0004218,30]
[392238575,1761274284734,-766.76,0.0004218,30]
[392238576,1761274284745,-422.640814,0.0004218,30]
[392238577,1761274284756,-1003.52,0.0004218,30]
[392238578,1761274284766,-500.0,0.0004218,30]
[392238579,1761274284776,-519.72,0.0004218,30]
[392238580,1761274284786,-500.0,0.0004218,30]
[392238581,1761274284796,-912.59,0.0004218,30]
[392238582,1761274284805,-500.0,0.0004218,30]
[392238583,1761274284815,-1073.92,0.0004218,30]
[392238584,1761274284824,-500.0,0.0004218,30]
[392238585,1761274284833,-969.79,0.0004218,30]
[392238586,1761274284844,-500.0,0.0004218,30]
[392238587,1761274284855,-911.06,0.0004218,30]
[392238588,1761274284865,-251.84817039,0.0004218,30]
[392238589,1761274284875,-816.96,0.0004218,30]
[392238590,1761274284884,-154.309446,0.0004218,30]
[392238591,1761274284894,-1003.57,0.0004218,30]
[392238592,1761274284904,-1043.31,0.0004218,30]
[392238593,1761274284913,-500.0,0.0004218,30]
[392238594,1761274284924,-500.0,0.0004218,30]
[392238595,1761274284934,-500.0,0.0004218,30]
[392238596,1761274284945,-500.0,0.0004218,30]
[392238597,1761274284955,-500.0,0.0004218,30]
[392238598,1761274284966,-500.0,0.0004218,30]
[392238599,1761274284979,-874.47,0.0004218,30]
[392238600,1761274284988,-1031.24,0.0004218,30]
[392238601,1761274284999,-500.0,0.0004218,30]
[392238602,1761274285014,-500.0,0.0004218,30]
[392238603,1761274285024,-500.0,0.0004218,30]
[392238604,1761274285033,-500.0,0.0004218,30]
[392238605,1761274285043,-742.2,0.0004218,30]
[392238606,1761274285052,-500.0,0.0004218,30]
[392238607,1761274285062,-500.0,0.0004218,30]
[392238608,1761274285071,-970.25,0.0004218,30]
[392238609,1761274285081,-500.0,0.0004218,30]
[392238610,1761274285090,-500.0,0.0004218,30]
[392238611,1761274285099,-500.0,0.0004218,30]
[392238612,1761274285109,-500.0,0.0004218,30]
[392238613,1761274285121,-500.0,0.0004218,30]
[392238614,1761274285131,-500.0,0.0004218,120]
[392238615,1761274285142,-930.94,0.0004218,30]
[392238616,1761274285153,-500.0,0.0004218,30]
[392238617,1761274285162,-500.0,0.0004218,30]
[392238618,1761274285171,-851.91,0.0004218,30]
[392238619,1761274285182,-538.52,0.0004218,30]
[392238620,1761274285193,-500.0,0.0004218,30]
[392238621,1761274285202,-640.34,0.0004218,30]
[392238622,1761274285212,-500.0,0.0004218,30]
[392238623,1761274285223,-500.0,0.0004218,30]
[392238624,1761274285235,-500.0,0.0004218,30]
[392238625,1761274285245,-500.0,0.0004218,30]
[392238626,1761274285255,-713.05,0.0004218,30]
[392238627,1761274285264,-619.12768676,0.0004218,30]
[392238628,1761274285274,-860.87,0.0004218,30]
[392238629,1761274285283,-500.0,0.0004218,30]
[392238630,1761274285292,-500.0,0.0004218,30]
[392238631,1761274285302,-500.0,0.0004218,30]
[392238632,1761274285311,-614.65,0.0004218,30]
[392238633,1761274285321,-587.34560914,0.0004218,30]
[392238634,1761274285330,-500.0,0.0004218,30]
[392238635,1761274285340,-1091.44,0.0004218,30]
[392238636,1761274285349,-500.0,0.0004218,30]
[392238637,1761274285359,-987.53,0.0004218,30]
[392238638,1761274285369,-721.02,0.0004218,30]
[392238639,1761274285378,-500.0,0.0004218,30]
[392238640,1761274285388,-584.05064742,0.0004218,30]
[392238641,1761274285398,-500.0,0.0004218,30]
[392238642,1761274285407,-787.97,0.0004218,30]
[392238643,1761274285417,-500.0,0.0004218,30]
[392238644,1761274285426,-320.85365401,0.0004218,30]
[392238645,1761274285436,-500.0,0.0004218,30]
[392238646,1761274285446,-1063.81,0.0004218,30]
[392238647,1761274285455,-1397.49,0.0004218,30]
[392238648,1761274285465,-519.34,0.0004218,30]
[392238649,1761274285475,-671.33,0.0004218,30]
[392238650,1761274285484,-500.0,0.0004218,30]
[392238651,1761274285494,-502.53,0.0004218,30]
[392238652,1761274285503,-500.0,0.0004218,30]
[392238653,1761274285513,-702.38,0.0004218,30]
[392238654,1761274285523,-876.68,0.0004218,30]
[392238655,1761274285534,-500.0,0.0004218,30]
[392238656,1761274285544,-500.0,0.0004218,30]
[392238657,1761274285553,-500.0,0.0004218,30]
[392238658,1761274285563,-722.06,0.0004218,30]
[392238659,1761274285574,-1201.5,0.0004218,30]
[392238660,1761274285585,-500.0,0.0004218,30]
[392238661,1761274285596,-771.24,0.0004218,30]
[392238662,1761274285607,-873.42,0.0004218,30]
[392238663,1761274285618,-1099.13,0.0004218,30]
[392238664,1761274285630,-500.0,0.0004218,30]
[392238665,1761274285640,-3634.23,0.0004218,30]